[Event "Titled Tuesday Blitz February 14 Early 2023"]
[White "Kostiukov, Alexandr"]
[Black "Oro, Faustino"]
[WhiteFideId "14108100"]
[BlackFideId "20000197"]
[WhiteElo "2271"]
[BlackElo "2269"]
[Result "0-1"]
[Round "09"]
[TimeControl "180+2"]
[Date "2023.02.14"]
[WhiteClock "0:00:01"]
[BlackClock "0:00:29"]

1. g3 {[%clk 0:02:11]}  e5 {[%clk 0:02:57]} 2. c4 {[%clk 0:02:10]}  Nf6 {[%clk 0:02:56]} 3. Bg2 {[%clk 0:02:11]}  c6 {[%clk 0:02:56]} 4. Nf3 {[%clk 0:02:09]}  e4 {[%clk 0:02:56]} 5. Ng5 {[%clk 0:02:09]}  d5 {[%clk 0:02:54]} 6. cxd5 {[%clk 0:02:10]}  cxd5 {[%clk 0:02:53]} 7. O-O {[%clk 0:02:01]}  h6 {[%clk 0:02:51]} 8. Nh3 {[%clk 0:02:01]}  Bd6 {[%clk 0:02:50]} 9. d3 {[%clk 0:01:57]}  exd3 {[%clk 0:02:48]} 10. Nc3 {[%clk 0:01:50]}  O-O {[%clk 0:02:45]} 11. Qxd3 {[%clk 0:01:44]}  Be6 {[%clk 0:02:30]} 12. Nf4 {[%clk 0:01:29]}  Bxf4 {[%clk 0:02:22]} 13. Bxf4 {[%clk 0:01:30]}  Nc6 {[%clk 0:02:21]} 14. Rad1 {[%clk 0:01:23]}  Qa5 {[%clk 0:02:12]} 15. a3 {[%clk 0:01:15]}  Rfd8 {[%clk 0:01:46]} 16. Nb5 {[%clk 0:01:11]}  Rd7 {[%clk 0:01:33]} 17. Nd4 {[%clk 0:00:57]}  Re8 {[%clk 0:01:19]} 18. Nxc6 {[%clk 0:00:51]}  bxc6 {[%clk 0:01:19]} 19. Rc1 {[%clk 0:00:47]}  Qb6 {[%clk 0:01:17]} 20. Qc2 {[%clk 0:00:41]}  Rc8 {[%clk 0:01:09]} 21. b4 {[%clk 0:00:39]}  Ne4 {[%clk 0:01:06]} 22. Be3 {[%clk 0:00:30]}  Qb7 {[%clk 0:01:05]} 23. Rfd1 {[%clk 0:00:24]}  Bf5 {[%clk 0:01:02]} 24. Qb2 {[%clk 0:00:21]}  Nd6 {[%clk 0:00:58]} 25. Bd4 {[%clk 0:00:20]}  Nc4 {[%clk 0:00:53]} 26. Qa1 {[%clk 0:00:19]}  f6 {[%clk 0:00:49]} 27. Bc5 {[%clk 0:00:11]}  Re8 {[%clk 0:00:45]} 28. e3 {[%clk 0:00:10]}  Ne5 {[%clk 0:00:44]} 29. a4 {[%clk 0:00:07]}  Be4 {[%clk 0:00:43]} 30. a5 {[%clk 0:00:04]}  Bxg2 {[%clk 0:00:38]} 31. Kxg2 {[%clk 0:00:05]}  Qc8 {[%clk 0:00:35]} 32. Qd4 {[%clk 0:00:04]}  Rf7 {[%clk 0:00:34]} 33. Qf4 {[%clk 0:00:04]}  Nc4 {[%clk 0:00:32]} 34. h4 {[%clk 0:00:02]}  Qe6 {[%clk 0:00:31]} 35. Rd4 {[%clk 0:00:01]}  Ne5 {[%clk 0:00:30]} 36. Rdd1 {[%clk 0:00:01]}  a6 {[%clk 0:00:29]} 0-1


[Site "https://www.chess.com"]

[Event "Titled Tuesday Blitz February 14 Early 2023"]
[White "Sekar, B"]
[Black "Matveeva, Olga"]
[WhiteFideId "5043743"]
[BlackFideId "24107018"]
[WhiteElo "2333"]
[BlackElo "2128"]
[Result "0-1"]
[Round "09"]
[TimeControl "180+2"]
[Date "2023.02.14"]
[WhiteClock "0:00:03"]
[BlackClock "0:00:03"]

1. Nf3 {[%clk 0:03:00]}  Nf6 {[%clk 0:02:58]} 2. c4 {[%clk 0:02:59]}  e6 {[%clk 0:02:55]} 3. d4 {[%clk 0:02:59]}  d5 {[%clk 0:02:53]} 4. Nc3 {[%clk 0:03:00]}  Be7 {[%clk 0:02:52]} 5. cxd5 {[%clk 0:03:00]}  exd5 {[%clk 0:02:51]} 6. Bg5 {[%clk 0:03:00]}  c6 {[%clk 0:02:50]} 7. e3 {[%clk 0:03:00]}  O-O {[%clk 0:02:38]} 8. Qc2 {[%clk 0:03:00]}  h6 {[%clk 0:02:37]} 9. Bh4 {[%clk 0:02:58]}  Re8 {[%clk 0:02:35]} 10. Bd3 {[%clk 0:02:55]}  Ne4 {[%clk 0:02:25]} 11. Bxe7 {[%clk 0:02:37]}  Qxe7 {[%clk 0:02:26]} 12. O-O {[%clk 0:02:31]}  Bf5 {[%clk 0:02:20]} 13. Ne5 {[%clk 0:02:24]}  Nd7 {[%clk 0:02:00]} 14. f3 {[%clk 0:01:54]}  Nxe5 {[%clk 0:01:53]} 15. dxe5 {[%clk 0:01:43]}  Nxc3 {[%clk 0:01:43]} 16. Bxf5 {[%clk 0:01:42]}  Nb5 {[%clk 0:01:35]} 17. f4 {[%clk 0:01:41]}  Rad8 {[%clk 0:01:19]} 18. Bd3 {[%clk 0:01:41]}  Nc7 {[%clk 0:01:15]} 19. Rae1 {[%clk 0:01:38]}  Qb4 {[%clk 0:00:59]} 20. a3 {[%clk 0:01:35]}  Qb6 {[%clk 0:00:56]} 21. Qe2 {[%clk 0:01:24]}  c5 {[%clk 0:00:51]} 22. Rf3 {[%clk 0:01:09]}  c4 {[%clk 0:00:48]} 23. Bc2 {[%clk 0:01:09]}  Ne6 {[%clk 0:00:41]} 24. f5 {[%clk 0:00:48]}  Ng5 {[%clk 0:00:39]} 25. Rg3 {[%clk 0:00:43]}  Rxe5 {[%clk 0:00:38]} 26. Qg4 {[%clk 0:00:32]}  Qf6 {[%clk 0:00:19]} 27. Qf4 {[%clk 0:00:19]}  Ne4 {[%clk 0:00:18]} 28. Rf3 {[%clk 0:00:20]}  Ng5 {[%clk 0:00:16]} 29. Rg3 {[%clk 0:00:20]}  Rde8 {[%clk 0:00:15]} 30. h4 {[%clk 0:00:16]}  Ne4 {[%clk 0:00:15]} 31. Rf3 {[%clk 0:00:16]}  Nd2 {[%clk 0:00:14]} 32. Rf2 {[%clk 0:00:15]}  Ne4 {[%clk 0:00:14]} 33. Rf3 {[%clk 0:00:15]}  Kh8 {[%clk 0:00:14]} 34. Re2 {[%clk 0:00:14]}  b5 {[%clk 0:00:14]} 35. Re1 {[%clk 0:00:12]}  a5 {[%clk 0:00:14]} 36. Re2 {[%clk 0:00:11]}  b4 {[%clk 0:00:14]} 37. Ba4 {[%clk 0:00:11]}  R8e7 {[%clk 0:00:14]} 38. axb4 {[%clk 0:00:12]}  axb4 {[%clk 0:00:13]} 39. Kh2 {[%clk 0:00:11]}  c3 {[%clk 0:00:13]} 40. bxc3 {[%clk 0:00:11]}  bxc3 {[%clk 0:00:14]} 41. Bc2 {[%clk 0:00:11]}  Rc7 {[%clk 0:00:13]} 42. g3 {[%clk 0:00:11]}  Rce7 {[%clk 0:00:13]} 43. Kh3 {[%clk 0:00:11]}  Qd6 {[%clk 0:00:12]} 44. Rf1 {[%clk 0:00:09]}  Qc5 {[%clk 0:00:12]} 45. Rd1 {[%clk 0:00:09]}  Qc4 {[%clk 0:00:11]} 46. Bd3 {[%clk 0:00:09]}  Qb3 {[%clk 0:00:11]} 47. Bc2 {[%clk 0:00:09]}  Qb4 {[%clk 0:00:11]} 48. Rd4 {[%clk 0:00:09]}  Qc5 {[%clk 0:00:11]} 49. Bxe4 {[%clk 0:00:08]}  Rxe4 {[%clk 0:00:10]} 50. Rxe4 {[%clk 0:00:09]}  Rxe4 {[%clk 0:00:09]} 51. Qb8+ {[%clk 0:00:09]}  Kh7 {[%clk 0:00:09]} 52. Qb1 {[%clk 0:00:08]}  f6 {[%clk 0:00:08]} 53. Qd3 {[%clk 0:00:06]}  Rc4 {[%clk 0:00:07]} 54. Rc2 {[%clk 0:00:05]}  Qc6 {[%clk 0:00:05]} 55. Qe2 {[%clk 0:00:05]}  Qc8 {[%clk 0:00:05]} 56. Qh5 {[%clk 0:00:05]}  Kh8 {[%clk 0:00:03]} 57. Kh2 {[%clk 0:00:03]}  Re4 {[%clk 0:00:03]} 0-1


[Site "https://www.chess.com"]

[Event "Titled Tuesday Blitz February 14 Early 2023"]
[White "Piriflillo"]
[Black "Shuvalov, Evgenij"]
[BlackFideId "4187237"]
[WhiteElo "2337"]
[BlackElo "2038"]
[Result "0-1"]
[Round "09"]
[TimeControl "180+2"]
[Date "2023.02.14"]
[WhiteClock "0:00:02"]
[BlackClock "0:00:55"]

1. e4 {[%clk 0:03:00]}  e6 {[%clk 0:02:59]} 2. d4 {[%clk 0:03:00]}  d5 {[%clk 0:02:59]} 3. Nc3 {[%clk 0:03:01]}  Bb4 {[%clk 0:02:58]} 4. exd5 {[%clk 0:02:58]}  exd5 {[%clk 0:02:58]} 5. Bd3 {[%clk 0:02:57]}  Nf6 {[%clk 0:02:55]} 6. a3 {[%clk 0:02:56]}  Be7 {[%clk 0:02:53]} 7. Nf3 {[%clk 0:02:56]}  Bg4 {[%clk 0:02:52]} 8. O-O {[%clk 0:02:51]}  O-O {[%clk 0:02:52]} 9. Be2 {[%clk 0:02:49]}  Nbd7 {[%clk 0:02:47]} 10. Ne5 {[%clk 0:02:47]}  Bxe2 {[%clk 0:02:44]} 11. Qxe2 {[%clk 0:02:47]}  c6 {[%clk 0:02:43]} 12. Bf4 {[%clk 0:02:46]}  Re8 {[%clk 0:02:42]} 13. Qf3 {[%clk 0:02:44]}  Nf8 {[%clk 0:02:41]} 14. Ne2 {[%clk 0:02:40]}  Ne6 {[%clk 0:02:41]} 15. Be3 {[%clk 0:02:39]}  Bd6 {[%clk 0:02:39]} 16. Nf4 {[%clk 0:02:33]}  Qc7 {[%clk 0:02:33]} 17. Nxe6 {[%clk 0:02:14]}  Rxe6 {[%clk 0:02:34]} 18. Bf4 {[%clk 0:02:08]}  Rae8 {[%clk 0:02:30]} 19. Rfe1 {[%clk 0:02:02]}  Nd7 {[%clk 0:02:21]} 20. Re3 {[%clk 0:01:26]}  Nxe5 {[%clk 0:02:17]} 21. Bxe5 {[%clk 0:01:26]}  Bxe5 {[%clk 0:02:17]} 22. dxe5 {[%clk 0:01:26]}  Rxe5 {[%clk 0:02:16]} 23. Rae1 {[%clk 0:01:27]}  d4 {[%clk 0:02:05]} 24. Re4 {[%clk 0:01:15]}  h6 {[%clk 0:01:57]} 25. h3 {[%clk 0:01:06]}  Rxe4 {[%clk 0:01:46]} 26. Rxe4 {[%clk 0:01:05]}  Rxe4 {[%clk 0:01:46]} 27. Qxe4 {[%clk 0:01:06]}  Qd7 {[%clk 0:01:46]} 28. Qd3 {[%clk 0:01:03]}  Qd5 {[%clk 0:01:44]} 29. b3 {[%clk 0:00:59]}  g6 {[%clk 0:01:42]} 30. a4 {[%clk 0:00:59]}  Kg7 {[%clk 0:01:41]} 31. c3 {[%clk 0:00:56]}  dxc3 {[%clk 0:01:41]} 32. Qxc3+ {[%clk 0:00:56]}  Kg8 {[%clk 0:01:40]} 33. Qb4 {[%clk 0:00:52]}  b6 {[%clk 0:01:38]} 34. Qe7 {[%clk 0:00:44]}  a5 {[%clk 0:01:30]} 35. Qe3 {[%clk 0:00:31]}  b5 {[%clk 0:01:23]} 36. axb5 {[%clk 0:00:28]}  cxb5 {[%clk 0:01:24]} 37. Qe8+ {[%clk 0:00:23]}  Kg7 {[%clk 0:01:22]} 38. Qe3 {[%clk 0:00:23]}  a4 {[%clk 0:01:17]} 39. Qc3+ {[%clk 0:00:22]}  Kh7 {[%clk 0:01:16]} 40. bxa4 {[%clk 0:00:22]}  bxa4 {[%clk 0:01:17]} 41. Qa3 {[%clk 0:00:20]}  Qb3 {[%clk 0:01:17]} 42. Qe7 {[%clk 0:00:10]}  a3 {[%clk 0:01:17]} 43. Qf6 {[%clk 0:00:10]}  a2 {[%clk 0:01:16]} 44. Kh2 {[%clk 0:00:10]}  Qe6 {[%clk 0:01:07]} 45. Qa1 {[%clk 0:00:07]}  g5 {[%clk 0:01:05]} 46. g3 {[%clk 0:00:06]}  h5 {[%clk 0:01:04]} 47. Qd4 {[%clk 0:00:03]}  Kg6 {[%clk 0:01:02]} 48. Qd3+ {[%clk 0:00:03]}  Qf5 {[%clk 0:00:59]} 49. Qd6+ {[%clk 0:00:03]}  Qf6 {[%clk 0:00:56]} 50. Qd3+ {[%clk 0:00:03]}  Kg7 {[%clk 0:00:56]} 51. Qe2 {[%clk 0:00:01]}  a1=Q {[%clk 0:00:55]} 52. Qxh5 {[%clk 0:00:02]} 0-1


[Site "https://www.chess.com"]

[Event "Titled Tuesday Blitz February 14 Early 2023"]
[White "Chernov, Mikhail"]
[Black "Prudnykova, Olga"]
[WhiteFideId "24143170"]
[BlackFideId "14121093"]
[WhiteElo "2205"]
[BlackElo "2268"]
[Result "1-0"]
[Round "09"]
[TimeControl "180+2"]
[Date "2023.02.14"]
[WhiteClock "0:00:06"]
[BlackClock "0:00:12"]

1. e4 {[%clk 0:02:50]}  c5 {[%clk 0:02:59]} 2. Nf3 {[%clk 0:02:49]}  Nf6 {[%clk 0:02:58]} 3. e5 {[%clk 0:02:47]}  Nd5 {[%clk 0:02:57]} 4. c3 {[%clk 0:02:47]}  e6 {[%clk 0:02:56]} 5. d4 {[%clk 0:02:48]}  b6 {[%clk 0:02:56]} 6. Bd3 {[%clk 0:02:46]}  Bb7 {[%clk 0:02:55]} 7. O-O {[%clk 0:02:46]}  Be7 {[%clk 0:02:54]} 8. Qe2 {[%clk 0:02:45]}  d6 {[%clk 0:02:49]} 9. a3 {[%clk 0:02:44]}  Nd7 {[%clk 0:02:46]} 10. c4 {[%clk 0:02:20]}  Nc7 {[%clk 0:02:44]} 11. d5 {[%clk 0:02:21]}  dxe5 {[%clk 0:02:26]} 12. dxe6 {[%clk 0:01:46]}  Nxe6 {[%clk 0:02:25]} 13. Nc3 {[%clk 0:01:37]}  O-O {[%clk 0:02:18]} 14. Nd5 {[%clk 0:01:37]}  Nd4 {[%clk 0:02:10]} 15. Nxd4 {[%clk 0:01:31]}  cxd4 {[%clk 0:02:09]} 16. Qe4 {[%clk 0:01:21]}  f5 {[%clk 0:01:53]} 17. Nxe7+ {[%clk 0:01:19]}  Qxe7 {[%clk 0:01:53]} 18. Qxb7 {[%clk 0:01:19]}  e4 {[%clk 0:01:52]} 19. Bc2 {[%clk 0:01:15]}  Kh8 {[%clk 0:01:32]} 20. Ba4 {[%clk 0:01:10]}  Rfd8 {[%clk 0:01:30]} 21. Bxd7 {[%clk 0:01:04]}  Qxd7 {[%clk 0:01:29]} 22. Qxd7 {[%clk 0:01:03]}  Rxd7 {[%clk 0:01:30]} 23. Bf4 {[%clk 0:01:01]}  Rc8 {[%clk 0:01:28]} 24. Rac1 {[%clk 0:00:59]}  Kg8 {[%clk 0:01:28]} 25. Rfd1 {[%clk 0:00:58]}  Kf7 {[%clk 0:01:27]} 26. Kf1 {[%clk 0:00:58]}  h6 {[%clk 0:01:24]} 27. h4 {[%clk 0:00:59]}  Ke6 {[%clk 0:01:21]} 28. Ke2 {[%clk 0:00:57]}  Rg8 {[%clk 0:01:15]} 29. h5 {[%clk 0:00:55]}  Rc8 {[%clk 0:01:12]} 30. b4 {[%clk 0:00:44]}  a5 {[%clk 0:01:07]} 31. Rd2 {[%clk 0:00:36]}  d3+ {[%clk 0:01:03]} 32. Ke3 {[%clk 0:00:36]}  axb4 {[%clk 0:01:00]} 33. axb4 {[%clk 0:00:36]}  Ra7 {[%clk 0:00:59]} 34. c5 {[%clk 0:00:33]}  Ra4 {[%clk 0:00:56]} 35. Rb2 {[%clk 0:00:19]}  bxc5 {[%clk 0:00:49]} 36. bxc5 {[%clk 0:00:17]}  Ra6 {[%clk 0:00:40]} 37. Rb7 {[%clk 0:00:13]}  Rac6 {[%clk 0:00:36]} 38. Rxg7 {[%clk 0:00:13]}  Rxc5 {[%clk 0:00:35]} 39. Rxc5 {[%clk 0:00:12]}  Rxc5 {[%clk 0:00:35]} 40. Rg6+ {[%clk 0:00:12]}  Kf7 {[%clk 0:00:35]} 41. Rxh6 {[%clk 0:00:07]}  Rc2 {[%clk 0:00:35]} 42. Rd6 {[%clk 0:00:07]}  Re2+ {[%clk 0:00:34]} 43. Kd4 {[%clk 0:00:07]}  Rxf2 {[%clk 0:00:32]} 44. Ke5 {[%clk 0:00:08]}  Ke7 {[%clk 0:00:27]} 45. Ra6 {[%clk 0:00:07]}  Kd7 {[%clk 0:00:26]} 46. Ra7+ {[%clk 0:00:07]}  Kc6 {[%clk 0:00:26]} 47. h6 {[%clk 0:00:07]}  d2 {[%clk 0:00:17]} 48. Ra1 {[%clk 0:00:06]}  Re2 {[%clk 0:00:13]} 49. h7 {[%clk 0:00:06]}  Re1 {[%clk 0:00:12]} 50. Bxd2 {[%clk 0:00:05]}  Rxa1 {[%clk 0:00:12]} 51. h8=Q {[%clk 0:00:06]} 1-0


[Site "https://www.chess.com"]

[Event "Titled Tuesday Blitz February 14 Early 2023"]
[White "Rose, Felix"]
[Black "Zacurdajev, Dmitry"]
[WhiteFideId "5105722"]
[BlackFideId "4196309"]
[WhiteElo "2091"]
[BlackElo "2273"]
[Result "0-1"]
[Round "09"]
[TimeControl "180+2"]
[Date "2023.02.14"]
[WhiteClock "0:00:42"]
[BlackClock "0:00:37"]

1. e4 {[%clk 0:02:59]}  c6 {[%clk 0:02:59]} 2. d4 {[%clk 0:02:59]}  d5 {[%clk 0:03:00]} 3. e5 {[%clk 0:03:00]}  c5 {[%clk 0:03:00]} 4. dxc5 {[%clk 0:03:00]}  Nc6 {[%clk 0:03:00]} 5. f4 {[%clk 0:03:00]}  e6 {[%clk 0:02:59]} 6. Be3 {[%clk 0:03:00]}  d4 {[%clk 0:03:00]} 7. Bf2 {[%clk 0:03:00]}  Bxc5 {[%clk 0:03:01]} 8. Nf3 {[%clk 0:02:53]}  Nge7 {[%clk 0:02:59]} 9. a3 {[%clk 0:02:52]}  Nd5 {[%clk 0:02:47]} 10. b4 {[%clk 0:02:35]}  Bb6 {[%clk 0:02:26]} 11. Qd2 {[%clk 0:02:25]}  Ne3 {[%clk 0:02:00]} 12. Bxe3 {[%clk 0:02:15]}  dxe3 {[%clk 0:02:01]} 13. Qxd8+ {[%clk 0:02:16]}  Kxd8 {[%clk 0:01:55]} 14. c4 {[%clk 0:02:16]}  Nd4 {[%clk 0:01:52]} 15. Nxd4 {[%clk 0:01:57]}  Bxd4 {[%clk 0:01:53]} 16. Ra2 {[%clk 0:01:57]}  a5 {[%clk 0:01:54]} 17. b5 {[%clk 0:01:53]}  b6 {[%clk 0:01:51]} 18. a4 {[%clk 0:01:43]}  Bb7 {[%clk 0:01:49]} 19. Na3 {[%clk 0:01:43]}  Ke7 {[%clk 0:01:41]} 20. Nc2 {[%clk 0:01:42]}  Bc5 {[%clk 0:01:26]} 21. Ke2 {[%clk 0:01:39]}  Rhd8 {[%clk 0:01:10]} 22. Nxe3 {[%clk 0:01:38]}  Bxe3 {[%clk 0:01:06]} 23. Kxe3 {[%clk 0:01:36]}  Rd1 {[%clk 0:01:07]} 24. h4 {[%clk 0:01:19]}  Rad8 {[%clk 0:01:05]} 25. Ke2 {[%clk 0:01:09]}  R8d4 {[%clk 0:00:49]} 26. Rh3 {[%clk 0:00:56]}  Rc1 {[%clk 0:00:40]} 27. Ke3 {[%clk 0:00:52]}  Re4+ {[%clk 0:00:37]} 28. Kf2 {[%clk 0:00:42]}  Rxf4+ {[%clk 0:00:37]} 0-1


[Site "https://www.chess.com"]

[Event "Titled Tuesday Blitz February 14 Early 2023"]
[White "Mirzanurov, Bulat"]
[Black "Korpics, Zsolt"]
[WhiteFideId "4184521"]
[BlackFideId "705241"]
[WhiteElo "2232"]
[BlackElo "2300"]
[Result "0-1"]
[Round "09"]
[TimeControl "180+2"]
[Date "2023.02.14"]
[WhiteClock "0:00:40"]
[BlackClock "0:01:19"]

1. e4 {[%clk 0:03:00]}  c5 {[%clk 0:02:59]} 2. Nf3 {[%clk 0:02:58]}  e6 {[%clk 0:02:59]} 3. d4 {[%clk 0:02:58]}  cxd4 {[%clk 0:03:00]} 4. Nxd4 {[%clk 0:02:58]}  Nc6 {[%clk 0:03:00]} 5. Nc3 {[%clk 0:02:55]}  Qc7 {[%clk 0:03:00]} 6. f4 {[%clk 0:02:45]}  a6 {[%clk 0:02:55]} 7. e5 {[%clk 0:02:41]}  Nxd4 {[%clk 0:02:31]} 8. Qxd4 {[%clk 0:02:39]}  Bc5 {[%clk 0:02:32]} 9. Qd3 {[%clk 0:02:35]}  b5 {[%clk 0:02:26]} 10. Be3 {[%clk 0:02:29]}  Bb4 {[%clk 0:02:23]} 11. a3 {[%clk 0:02:22]}  Bxc3+ {[%clk 0:02:22]} 12. bxc3 {[%clk 0:02:23]}  Ne7 {[%clk 0:02:17]} 13. Be2 {[%clk 0:02:10]}  Bb7 {[%clk 0:02:11]} 14. O-O {[%clk 0:02:02]}  Rc8 {[%clk 0:02:06]} 15. Rfd1 {[%clk 0:01:48]}  Nd5 {[%clk 0:01:56]} 16. Bd2 {[%clk 0:01:41]}  O-O {[%clk 0:01:43]} 17. Bf3 {[%clk 0:01:34]}  Nb6 {[%clk 0:01:35]} 18. Bxb7 {[%clk 0:01:23]}  Qxb7 {[%clk 0:01:36]} 19. Be3 {[%clk 0:01:18]}  Nd5 {[%clk 0:01:33]} 20. a4 {[%clk 0:01:13]}  Rxc3 {[%clk 0:01:31]} 21. Qd4 {[%clk 0:01:04]}  Rxe3 {[%clk 0:01:29]} 22. axb5 {[%clk 0:01:00]}  axb5 {[%clk 0:01:29]} 23. Ra7 {[%clk 0:00:59]}  Qc6 {[%clk 0:01:30]} 24. Qb2 {[%clk 0:00:46]}  Qb6 {[%clk 0:01:19]} 25. Qa2 {[%clk 0:00:40]}  Re1# {[%clk 0:01:19]} 0-1


[Site "https://www.chess.com"]

[Event "Titled Tuesday Blitz February 14 Early 2023"]
[White "Ardila, Oscar Humberto"]
[Black "Delorme, Axel"]
[WhiteFideId "4404742"]
[BlackFideId "632023"]
[WhiteElo "1982"]
[BlackElo "2483"]
[Result "1-0"]
[Round "09"]
[TimeControl "180+2"]
[Date "2023.02.14"]
[WhiteClock "0:01:13"]
[BlackClock "0:00:14"]

1. d4 {[%clk 0:02:59]}  d5 {[%clk 0:02:59]} 2. Nf3 {[%clk 0:02:59]}  e6 {[%clk 0:02:59]} 3. g3 {[%clk 0:02:58]}  Nf6 {[%clk 0:02:58]} 4. Bg2 {[%clk 0:02:58]}  c5 {[%clk 0:02:58]} 5. c3 {[%clk 0:02:56]}  Nc6 {[%clk 0:02:56]} 6. O-O {[%clk 0:02:54]}  cxd4 {[%clk 0:02:55]} 7. Nxd4 {[%clk 0:02:53]}  e5 {[%clk 0:02:53]} 8. Nxc6 {[%clk 0:02:45]}  bxc6 {[%clk 0:02:54]} 9. Qa4 {[%clk 0:02:43]}  Bd7 {[%clk 0:02:47]} 10. Bg5 {[%clk 0:02:42]}  Bd6 {[%clk 0:02:44]} 11. Nd2 {[%clk 0:02:40]}  O-O {[%clk 0:02:38]} 12. e4 {[%clk 0:02:28]}  c5 {[%clk 0:02:20]} 13. Qa6 {[%clk 0:02:19]}  Qc7 {[%clk 0:01:11]} 14. Bxf6 {[%clk 0:02:12]}  gxf6 {[%clk 0:01:12]} 15. exd5 {[%clk 0:02:12]}  Rab8 {[%clk 0:00:51]} 16. Qd3 {[%clk 0:01:52]}  f5 {[%clk 0:00:43]} 17. b3 {[%clk 0:01:48]}  e4 {[%clk 0:00:39]} 18. Qe2 {[%clk 0:01:44]}  Be5 {[%clk 0:00:39]} 19. Rac1 {[%clk 0:01:44]}  a5 {[%clk 0:00:36]} 20. Qh5 {[%clk 0:01:40]}  Bg7 {[%clk 0:00:35]} 21. Nc4 {[%clk 0:01:31]}  a4 {[%clk 0:00:32]} 22. d6 {[%clk 0:01:31]}  Qd8 {[%clk 0:00:22]} 23. Bh3 {[%clk 0:01:28]}  Qf6 {[%clk 0:00:18]} 24. bxa4 {[%clk 0:01:18]}  Bxa4 {[%clk 0:00:17]} 25. Ne3 {[%clk 0:01:14]}  Bd7 {[%clk 0:00:16]} 26. Bxf5 {[%clk 0:01:13]}  Bxf5 {[%clk 0:00:15]} 27. Nxf5 {[%clk 0:01:13]}  Qg6 {[%clk 0:00:14]} 28. Ne7+ {[%clk 0:01:13]} 1-0


[Site "https://www.chess.com"]

[Event "Titled Tuesday Blitz February 14 Early 2023"]
[White "Smith, Garrett L"]
[Black "Valle Maytin, Luis Enrique"]
[WhiteFideId "2024829"]
[BlackFideId "3503666"]
[WhiteElo "2047"]
[BlackElo "2241"]
[Result "1-0"]
[Round "09"]
[TimeControl "180+2"]
[Date "2023.02.14"]
[WhiteClock "0:00:33"]
[BlackClock "0:00:03"]

1. e4 {[%clk 0:03:00]}  c6 {[%clk 0:02:46]} 2. d4 {[%clk 0:02:49]}  d5 {[%clk 0:02:47]} 3. e5 {[%clk 0:02:49]}  c5 {[%clk 0:02:47]} 4. Nf3 {[%clk 0:02:49]}  Bg4 {[%clk 0:02:42]} 5. dxc5 {[%clk 0:02:45]}  e6 {[%clk 0:02:42]} 6. Bb5+ {[%clk 0:02:41]}  Nc6 {[%clk 0:02:41]} 7. b4 {[%clk 0:02:29]}  Ne7 {[%clk 0:02:34]} 8. O-O {[%clk 0:02:22]}  a6 {[%clk 0:02:28]} 9. Ba4 {[%clk 0:02:16]}  Ng6 {[%clk 0:02:22]} 10. Bb2 {[%clk 0:02:15]}  Qc7 {[%clk 0:02:20]} 11. Re1 {[%clk 0:02:13]}  Be7 {[%clk 0:02:19]} 12. Nbd2 {[%clk 0:02:04]}  O-O {[%clk 0:02:17]} 13. Bxc6 {[%clk 0:01:56]}  Qxc6 {[%clk 0:02:01]} 14. h3 {[%clk 0:01:52]}  Bxf3 {[%clk 0:01:57]} 15. Nxf3 {[%clk 0:01:51]}  Qc7 {[%clk 0:01:55]} 16. Qd2 {[%clk 0:01:45]}  b6 {[%clk 0:01:54]} 17. cxb6 {[%clk 0:01:41]}  Qxb6 {[%clk 0:01:55]} 18. a3 {[%clk 0:01:39]}  Rfc8 {[%clk 0:01:47]} 19. Bd4 {[%clk 0:01:35]}  Qb5 {[%clk 0:01:40]} 20. g3 {[%clk 0:01:32]}  Rc4 {[%clk 0:01:30]} 21. c3 {[%clk 0:01:32]}  h6 {[%clk 0:01:22]} 22. h4 {[%clk 0:01:31]}  Bf6 {[%clk 0:01:17]} 23. exf6 {[%clk 0:01:29]}  Rac8 {[%clk 0:01:11]} 24. fxg7 {[%clk 0:01:27]}  Kh7 {[%clk 0:01:01]} 25. h5 {[%clk 0:01:26]}  Ne7 {[%clk 0:00:59]} 26. Ne5 {[%clk 0:01:19]}  R4c7 {[%clk 0:00:21]} 27. Nxf7 {[%clk 0:01:09]}  Nf5 {[%clk 0:00:20]} 28. Ne5 {[%clk 0:00:58]}  Rxg7 {[%clk 0:00:20]} 29. Ng6 {[%clk 0:00:48]}  Nxd4 {[%clk 0:00:15]} 30. cxd4 {[%clk 0:00:42]}  Qd7 {[%clk 0:00:12]} 31. Re5 {[%clk 0:00:41]}  Kg8 {[%clk 0:00:11]} 32. Rae1 {[%clk 0:00:41]}  Rc6 {[%clk 0:00:12]} 33. Qxh6 {[%clk 0:00:41]}  Kf7 {[%clk 0:00:10]} 34. Qh8 {[%clk 0:00:40]}  Rg8 {[%clk 0:00:09]} 35. Qh6 {[%clk 0:00:37]}  Rg7 {[%clk 0:00:10]} 36. R1e3 {[%clk 0:00:36]}  Rc1+ {[%clk 0:00:05]} 37. Kg2 {[%clk 0:00:36]}  Qb5 {[%clk 0:00:05]} 38. Rf3+ {[%clk 0:00:36]}  Ke8 {[%clk 0:00:05]} 39. Rf8+ {[%clk 0:00:34]}  Kd7 {[%clk 0:00:03]} 40. Qxg7+ {[%clk 0:00:34]}  Kd6 {[%clk 0:00:03]} 41. Qe7+ {[%clk 0:00:33]} 1-0


[Site "https://www.chess.com"]

[Event "Titled Tuesday Blitz February 14 Early 2023"]
[White "Gatterer, Florian"]
[Black "SicilianPanzer"]
[WhiteFideId "811688"]
[WhiteElo "2170"]
[BlackElo "2240"]
[Result "1/2-1/2"]
[Round "09"]
[TimeControl "180+2"]
[Date "2023.02.14"]
[WhiteClock "0:00:29"]
[BlackClock "0:00:01"]

1. e4 {[%clk 0:03:00]}  e6 {[%clk 0:02:57]} 2. d4 {[%clk 0:03:00]}  d5 {[%clk 0:02:56]} 3. Nd2 {[%clk 0:03:01]}  Be7 {[%clk 0:02:55]} 4. Ngf3 {[%clk 0:03:00]}  Nf6 {[%clk 0:02:54]} 5. Bd3 {[%clk 0:03:00]}  c5 {[%clk 0:02:21]} 6. dxc5 {[%clk 0:02:59]}  O-O {[%clk 0:02:17]} 7. O-O {[%clk 0:02:55]}  Nc6 {[%clk 0:02:05]} 8. c3 {[%clk 0:02:51]}  Bxc5 {[%clk 0:01:59]} 9. Qe2 {[%clk 0:02:50]}  e5 {[%clk 0:01:30]} 10. Nb3 {[%clk 0:02:43]}  dxe4 {[%clk 0:01:28]} 11. Bxe4 {[%clk 0:02:34]}  Nxe4 {[%clk 0:01:26]} 12. Qxe4 {[%clk 0:02:34]}  Bd6 {[%clk 0:01:23]} 13. Bg5 {[%clk 0:02:30]}  Qc7 {[%clk 0:01:18]} 14. Rad1 {[%clk 0:02:26]}  Be6 {[%clk 0:00:49]} 15. Be3 {[%clk 0:02:19]}  f5 {[%clk 0:00:45]} 16. Qh4 {[%clk 0:02:19]}  h6 {[%clk 0:00:20]} 17. Bc5 {[%clk 0:02:16]}  Rad8 {[%clk 0:00:18]} 18. Bxd6 {[%clk 0:02:14]}  Rxd6 {[%clk 0:00:19]} 19. Nc5 {[%clk 0:02:15]}  Bf7 {[%clk 0:00:16]} 20. Rxd6 {[%clk 0:01:33]}  Qxd6 {[%clk 0:00:17]} 21. Nxb7 {[%clk 0:01:33]}  Qb8 {[%clk 0:00:17]} 22. Nc5 {[%clk 0:01:32]}  Qxb2 {[%clk 0:00:17]} 23. Nd7 {[%clk 0:01:32]}  Re8 {[%clk 0:00:15]} 24. Qa4 {[%clk 0:01:24]}  Qxc3 {[%clk 0:00:14]} 25. h3 {[%clk 0:01:12]}  e4 {[%clk 0:00:14]} 26. Nh4 {[%clk 0:01:10]}  Be6 {[%clk 0:00:10]} 27. Rd1 {[%clk 0:00:59]}  Rd8 {[%clk 0:00:10]} 28. Nf6+ {[%clk 0:00:40]}  Qxf6 {[%clk 0:00:10]} 29. Rxd8+ {[%clk 0:00:39]}  Qxd8 {[%clk 0:00:09]} 30. Qxc6 {[%clk 0:00:39]}  Qd1+ {[%clk 0:00:02]} 31. Kh2 {[%clk 0:00:38]}  Bd7 {[%clk 0:00:03]} 32. Qc4+ {[%clk 0:00:34]}  Kh7 {[%clk 0:00:03]} 33. Qf7 {[%clk 0:00:34]}  Qd5 {[%clk 0:00:03]} 34. Ng6 {[%clk 0:00:30]}  Qxf7 {[%clk 0:00:02]} 35. Ne5 {[%clk 0:00:29]}  Qe6 {[%clk 0:00:01]} 36. f4 {[%clk 0:00:29]}  Qd6 {[%clk 0:00:01]} 1/2-1/2


[Site "https://www.chess.com"]